bitfinex/quotes_BTCUSD_20250922
["timestamp","ask_amount","ask_price","bid_price","bid_amount"]
[1758529390217,0.98940684,112900.0,112890.0,0.18163331]
[1758529391126,0.81225893,112900.0,112890.0,0.18368331]
[1758529391764,0.81225893,112900.0,112890.0,0.18672331]
[1758529392825,0.98940684,112900.0,112890.0,0.18672331]
[1758529393257,0.98940684,112900.0,112890.0,0.18163331]
[1758529394110,0.99045684,112900.0,112890.0,0.18163331]
[1758529394327,0.98940684,112900.0,112890.0,0.18163331]
[1758529395204,0.98940684,112900.0,112890.0,0.18063331]
[1758529395624,0.81225893,112900.0,112890.0,0.18063331]
[1758529395840,0.81225893,112900.0,112890.0,0.18267331]
[1758529396245,0.99040684,112900.0,112890.0,0.18267331]
[1758529398778,0.81325893,112900.0,112890.0,0.18267331]
[1758529398978,0.99040684,112900.0,112890.0,0.18590331]
[1758529400152,0.99040684,112900.0,112890.0,0.18267331]
[1758529401809,0.99040684,112900.0,112890.0,0.0034697]
[1758529402230,0.99040684,112900.0,112890.0,0.18063331]
[1758529402920,0.99040684,112900.0,112890.0,0.0034697]
[1758529403319,0.99079684,112900.0,112890.0,0.0034697]
[1758529404164,0.99079684,112900.0,112890.0,0.18063331]
[1758529404369,0.99079684,112900.0,112890.0,0.0034697]
[1758529404553,0.99079684,112900.0,112890.0,0.0055097]
[1758529404755,0.4180197,112900.0,112890.0,0.20998331]
[1758529404962,0.78825893,112900.0,112890.0,0.20998331]
[1758529405171,0.78825893,112900.0,112890.0,0.24958545]
[1758529406368,0.96540684,112900.0,112890.0,0.20998331]
[1758529407038,0.98942684,112900.0,112890.0,0.20998331]
[1758529407234,0.96540684,112900.0,112890.0,0.20998331]
[1758529407654,0.78825893,112900.0,112890.0,0.20945331]
[1758529411015,0.78993893,112900.0,112890.0,0.18590331]
[1758529411222,0.81227893,112900.0,112890.0,0.18590331]
[1758529411633,0.81227893,112900.0,112890.0,0.20945331]
[1758529411809,0.78825893,112900.0,112890.0,0.20945331]
[1758529412629,0.54151951,112900.0,112890.0,0.20945331]
[1758529412837,0.56553951,112900.0,112890.0,0.20945331]
[1758529417887,0.74268742,112900.0,112890.0,0.20945331]
[1758529418093,0.56553951,112900.0,112890.0,0.20945331]
[1758529419077,0.56553951,112900.0,112890.0,0.18590331]
[1758529419483,0.74268742,112900.0,112890.0,0.18590331]
[1758529420330,0.56553951,112900.0,112890.0,0.20945331]
[1758529420542,0.74268742,112900.0,112890.0,0.20945331]
[1758529421208,0.74268742,112900.0,112890.0,0.18590331]
[1758529421417,0.74436742,112900.0,112890.0,0.18590331]
[1758529422987,0.77027659,112900.0,112890.0,0.0034697]
[1758529423595,0.76922659,112900.0,112890.0,0.18063331]
[1758529423815,0.7609402,112900.0,112890.0,0.18063331]
[1758529425504,0.7619902,112900.0,112890.0,0.0034697]
[1758529428716,0.7609402,112900.0,112890.0,0.0034697]
[1758529429314,0.7609402,112900.0,112890.0,0.18063331]
[1758529429520,0.7609402,112900.0,112890.0,0.0034697]
[1758529430891,0.7609402,112900.0,112890.0,0.18063331]
[1758529432140,0.26720116,112900.0,112890.0,0.18259331]
[1758529432349,0.26720116,112900.0,112890.0,0.18574331]
[1758529432597,0.7609402,112900.0,112890.0,0.18574331]
[1758529433054,0.7609402,112900.0,112890.0,0.18259331]
[1758529433309,0.7369202,112900.0,112890.0,0.18259331]
[1758529433520,0.7592602,112900.0,112890.0,0.20929331]
[1758529435384,0.55809229,112900.0,112890.0,0.18574331]
[1758529435587,0.04778047,112900.0,112890.0,0.20929331]
[1758529435795,0.54151951,112900.0,112890.0,0.20929331]
[1758529435999,0.71866742,112900.0,112890.0,0.20929331]
[1758529436205,0.72382752,112900.0,112890.0,0.24882645]
[1758529436467,0.74784752,112900.0,112890.0,0.24882645]
[1758529437706,0.74784752,112900.0,112890.0,0.22527645]
[1758529437908,0.74952752,112900.0,112890.0,0.22527645]
[1758529440243,0.74952752,112900.0,112890.0,0.22212645]
[1758529440445,0.74952752,112900.0,112890.0,0.22233645]
[1758529440592,0.74952752,112900.0,112890.0,0.22552645]
[1758529440801,0.74952752,112900.0,112890.0,0.24823645]
[1758529441181,0.74784752,112900.0,112890.0,0.24823645]
[1758529441899,0.57069961,112900.0,112890.0,0.24823645]
[1758529442203,0.74784752,112900.0,112890.0,0.24823645]
[1758529443681,0.74784752,112900.0,112890.0,0.20870331]
[1758529443883,0.74952752,112900.0,112890.0,0.18599331]
[1758529444119,0.74952752,112900.0,112890.0,0.0056397]
[1758529444320,0.74952752,112900.0,112890.0,0.18063331]
[1758529446225,0.74952752,112900.0,112890.0,0.18280331]
[1758529447166,0.74953251,112900.0,112890.0,0.18063331]
[1758529448427,0.25579347,112900.0,112890.0,0.18063331]
[1758529448599,0.74953251,112900.0,112890.0,0.18063331]
[1758529451779,0.74953251,112900.0,112890.0,0.18280331]
[1758529451970,0.74953251,112900.0,112890.0,0.18599331]
[1758529452181,0.25579347,112900.0,112890.0,0.18599331]
[1758529452390,0.74953251,112900.0,112890.0,0.18599331]
[1758529452803,0.74953251,112900.0,112890.0,0.20885331]
[1758529453633,0.07864556,112900.0,112890.0,0.20885331]
[1758529453839,0.74785251,112900.0,112890.0,0.20885331]
[1758529455483,0.5707046,112900.0,112890.0,0.24834245]
[1758529456116,0.07696556,112900.0,112890.0,0.24834245]
[1758529456326,0.5707046,112900.0,112890.0,0.24834245]
[1758529456554,0.05294556,112900.0,112890.0,0.24834245]
[1758529456755,0.04673164,112900.0,112890.0,0.24834245]
[1758529457242,0.02764302,112900.0,112890.0,0.24834245]
[1758529458195,0.02664302,112900.0,112890.0,0.24534245]
[1758529458559,0.02664302,112900.0,112890.0,0.24834245]
[1758529459259,0.02664302,112900.0,112890.0,0.24934245]
[1758529463350,0.52038206,112900.0,112890.0,0.24934245]
[1758529463525,0.52038206,112900.0,112890.0,0.20985331]
[1758529464162,0.54308206,112900.0,112890.0,0.20985331]
[1758529465776,0.52206206,112900.0,112890.0,0.18380331]
[1758529465978,0.54476206,112900.0,112890.0,0.18163331]
[1758529466602,0.56383793,112900.0,112890.0,0.18163331]
[1758529468624,0.56383793,112900.0,112890.0,0.18366331]
[1758529469039,0.04571889,112900.0,112890.0,0.18682331]
[1758529469224,0.02664302,112900.0,112890.0,0.24956548]
[1758529469452,0.52038206,112900.0,112890.0,0.24956548]
[1758529469660,0.52038206,112900.0,112890.0,0.21019331]
[1758529469867,0.02664302,112900.0,112890.0,0.21019331]
[1758529470071,0.52038206,112900.0,112890.0,0.21019331]
[1758529471125,0.02664302,112900.0,112890.0,0.21019331]
[1758529471337,0.52038206,112900.0,112890.0,0.21019331]
[1758529471766,0.54311206,112900.0,112890.0,0.21019331]
[1758529472704,0.438718,112900.0,112890.0,0.21019331]
[1758529472900,0.41964157,112900.0,112890.0,0.21019331]
[1758529473111,0.78991012,112900.0,112890.0,0.18682331]
[1758529473308,0.80898655,112900.0,112890.0,0.18682331]
[1758529473530,0.78793655,112900.0,112890.0,0.18366331]
[1758529473796,0.81066655,112900.0,112890.0,0.18366331]
[1758529474166,0.61524991,112900.0,112890.0,0.18682331]
[1758529474440,0.64021121,112900.0,112890.0,0.22644645]
[1758529474641,0.64021121,112900.0,112890.0,0.24981645]
[1758529474787,0.41963985,112900.0,112890.0,0.24981645]
[1758529476458,0.41963985,112900.0,112890.0,0.22644645]
[1758529479722,0.0493713,112900.0,112890.0,0.22644645]
[1758529479919,0.41963985,112900.0,112890.0,0.22644645]
[1758529481174,0.0493713,112900.0,112890.0,0.22644645]
[1758529481349,0.41963985,112900.0,112890.0,0.24981645]
[1758529481535,0.39690985,112900.0,112890.0,0.24981645]
[1758529481731,0.41963985,112900.0,112890.0,0.24981645]
[1758529481931,0.42131985,112900.0,112890.0,0.22644645]
[1758529482564,0.42131985,112900.0,112890.0,0.22328645]
[1758529482819,0.42131985,112900.0,112890.0,0.22125645]
[1758529483159,0.7915884,112900.0,112890.0,0.18163331]
[1758529483376,0.44039673,112900.0,112890.0,0.18163331]
[1758529483615,0.42131985,112900.0,112890.0,0.18163331]
[1758529485092,0.7915884,112900.0,112890.0,0.18163331]
[1758529485296,0.81066528,112900.0,112890.0,0.18163331]
[1758529486310,0.07012818,112900.0,112890.0,0.22308345]
[1758529486479,0.39690985,112900.0,112890.0,0.24961345]
[1758529487839,0.0266413,112900.0,112890.0,0.24961345]
[1758529488049,0.39690985,112900.0,112890.0,0.24961345]
[1758529490395,0.39690985,112900.0,112890.0,0.21019331]
[1758529492351,0.0266413,112900.0,112890.0,0.21019331]
[1758529492531,0.41963985,112900.0,112890.0,0.21019331]
[1758529492914,0.39690985,112900.0,112890.0,0.21019331]
[1758529493946,0.41963985,112900.0,112890.0,0.21019331]
[1758529494740,0.39690985,112900.0,112890.0,0.28684331]
[1758529495548,0.7915884,112900.0,112890.0,0.18366331]
[1758529495729,0.0701483,112900.0,112890.0,0.18366331]
[1758529496022,0.42131985,112900.0,112890.0,0.18366331]
[1758529496253,0.7915884,112900.0,112890.0,0.18366331]
[1758529496457,0.8106854,112900.0,112890.0,0.18366331]
[1758529496651,0.44041685,112900.0,112890.0,0.18682331]
[1758529496863,0.42131985,112900.0,112890.0,0.18682331]
[1758529497099,0.41963985,112900.0,112890.0,0.25009645]
[1758529498038,0.0493713,112900.0,112890.0,0.25009645]
[1758529498289,0.41963985,112900.0,112890.0,0.25009645]
[1758529499306,0.43873685,112900.0,112890.0,0.25009645]
[1758529500754,0.41600685,112900.0,112890.0,0.25009645]
[1758529501309,0.41601228,112900.0,112890.0,0.25009645]
[1758529501549,0.04574373,112900.0,112890.0,0.596715]
[1758529501752,0.0266413,112900.0,112890.0,0.620365]
[1758529501959,0.83458958,112910.0,112900.0,0.17714791]
[1758529502176,0.86122877,112910.0,112900.0,0.22190235]
[1758529502402,0.86122877,112910.0,112900.0,0.24876235]
[1758529503791,0.85501017,112910.0,112900.0,0.24876235]
[1758529504001,0.85601017,112910.0,112900.0,0.24876235]
[1758529505071,0.85501017,112910.0,112900.0,0.24976235]
[1758529505424,0.85501017,112910.0,112900.0,0.25576235]
[1758529505646,0.87811017,112910.0,112900.0,0.25476235]
[1758529506269,0.50784162,112910.0,112900.0,0.25476235]
[1758529506514,0.85900774,112910.0,112900.0,0.25776235]
[1758529506719,0.87811017,112910.0,112900.0,0.25776235]
[1758529511569,0.50784162,112910.0,112900.0,0.25776235]
[1758529511745,0.85900774,112910.0,112900.0,0.25776235]
[1758529511998,0.87811017,112910.0,112900.0,0.25776235]
[1758529513232,0.87979017,112910.0,112900.0,0.25776235]
[1758529513447,0.87979017,112910.0,112900.0,0.23411235]
[1758529517773,0.87979017,112910.0,112900.0,0.23090235]
[1758529518338,0.87979017,112910.0,112900.0,0.22887235]
[1758529518901,0.50952162,112910.0,112900.0,0.22887235]
[1758529519103,0.86068774,112910.0,112900.0,0.22887235]
[1758529519308,0.87979017,112910.0,112900.0,0.22887235]
[1758529520502,0.87979017,112910.0,112900.0,0.23091235]
[1758529522902,0.50952162,112910.0,112900.0,0.23091235]
[1758529523106,0.86068774,112910.0,112900.0,0.23411235]
[1758529523260,0.87979017,112910.0,112900.0,0.23411235]
[1758529523653,0.50952162,112910.0,112900.0,0.23411235]
[1758529523854,0.85900774,112910.0,112900.0,0.23411235]
[1758529524054,0.85900774,112910.0,112900.0,0.25819235]
[1758529525080,0.87809454,112910.0,112900.0,0.25819235]
[1758529526724,0.50782599,112910.0,112900.0,0.25819235]
[1758529526919,0.85900774,112910.0,112900.0,0.25819235]
[1758529527167,0.87809454,112910.0,112900.0,0.25819235]
[1758529529433,0.50782599,112910.0,112900.0,0.25819235]
[1758529529667,0.46563919,112910.0,112900.0,0.23411235]
[1758529529870,0.52719349,112930.0,112920.0,0.17711654]
[1758529530006,0.54442554,112930.0,112920.0,0.21254]
[1758529530352,0.13206215,112930.0,112920.0,0.21254]
[1758529530953,0.5023307,112930.0,112920.0,0.21254]
[1758529531221,0.5033307,112930.0,112920.0,0.21254]
[1758529533022,0.68043155,112930.0,112920.0,0.21254]
[1758529534656,0.80368097,112930.0,112920.0,0.21254]
[1758529537602,0.62658012,112930.0,112920.0,0.21254]
[1758529537808,0.62553012,112930.0,112920.0,0.21254]
[1758529537996,0.80263097,112930.0,112920.0,0.21254]
[1758529538746,0.80368097,112930.0,112920.0,0.21254]
[1758529539911,0.80263097,112930.0,112920.0,0.21254]
[1758529540116,0.62553012,112930.0,112920.0,0.21254]
[1758529540524,0.80263097,112930.0,112920.0,0.21254]
[1758529541140,0.62553012,112930.0,112920.0,0.21254]
[1758529541344,0.80263097,112930.0,112920.0,0.21254]
[1758529542068,0.62553012,112930.0,112920.0,0.21254]
[1758529542999,0.80263097,112930.0,112920.0,0.21753]
[1758529543428,0.80263097,112930.0,112920.0,0.21457]
[1758529543798,0.80263097,112930.0,112920.0,0.21254]
[1758529544229,0.62553012,112930.0,112920.0,0.21254]
[1758529544423,0.62553012,112930.0,112920.0,0.21457]
[1758529544783,0.62385012,112930.0,112920.0,0.24059]
[1758529544991,0.59942012,112930.0,112920.0,0.21753]
[1758529545201,0.59942012,112930.0,112920.0,0.24059]
[1758529545408,0.58491807,112930.0,112920.0,0.24059]
[1758529545625,0.59941675,112930.0,112920.0,0.24059]
[1758529545833,0.10589878,112930.0,112920.0,0.21753]
[1758529546053,0.09661382,112930.0,112920.0,0.24059]
[1758529546278,0.09661382,112930.0,112920.0,0.24159]
[1758529547233,0.0904001,112930.0,112920.0,0.24159]
[1758529547908,0.04467669,112930.0,112920.0,0.24159]
[1758529548114,0.04467669,112930.0,112920.0,0.24459]
[1758529550939,0.53819466,112930.0,112920.0,0.24459]
[1758529551141,0.56262466,112930.0,112920.0,0.24459]
[1758529551467,0.58171146,112930.0,112920.0,0.24459]
[1758529551677,0.06376349,112930.0,112920.0,0.24459]
[1758529551886,0.53819466,112930.0,112920.0,0.24459]
[1758529552008,0.04467669,112930.0,112920.0,0.24459]
[1758529553868,0.53819466,112930.0,112920.0,0.24459]
[1758529554236,0.04467669,112930.0,112920.0,0.24459]
[1758529557384,0.53819466,112930.0,112920.0,0.24459]
[1758529558915,0.56194466,112930.0,112920.0,0.24459]
[1758529559538,0.74177551,112930.0,112920.0,0.004]
[1758529559758,0.76083877,112930.0,112920.0,0.004]
[1758529559967,0.78747415,112930.0,112920.0,0.004]
[1758529560385,0.76841089,112930.0,112920.0,0.004]
[1758529560584,0.78747311,112930.0,112920.0,0.004]
[1758529562241,0.78747311,112930.0,112920.0,0.18111654]
[1758529562446,0.78747311,112930.0,112920.0,0.004]
[1758529563260,0.79367779,112930.0,112920.0,0.004]
[1758529564047,0.79367779,112930.0,112920.0,0.003]
[1758529564451,0.17711654,112920.0,112910.0,0.17711804]
[1758529564647,0.69438451,112920.0,112910.0,0.22041682]
[1758529564835,0.71512673,112920.0,112910.0,0.22041682]
[1758529565267,0.74176355,112920.0,112910.0,0.22041682]
[1758529565897,0.74176355,112920.0,112910.0,0.22341682]
[1758529566259,0.74176355,112920.0,112910.0,0.22441682]
[1758529566713,0.74176355,112920.0,112910.0,0.004]
[1758529566876,0.74281355,112920.0,112910.0,0.18113222]
[1758529567502,0.74176355,112920.0,112910.0,0.18113222]
[1758529568822,0.07112904,112920.0,112910.0,0.18312222]
[1758529569094,0.54390479,112920.0,112910.0,0.21026222]
[1758529569237,0.56296701,112920.0,112910.0,0.25416142]
[1758529570048,1.00196701,112920.0,112910.0,0.25416142]
[1758529571705,1.17908355,112920.0,112910.0,0.25416142]
[1758529571893,1.18076355,112920.0,112910.0,0.22702142]
[1758529573997,1.00364701,112920.0,112910.0,0.22702142]
[1758529574575,1.00364701,112920.0,112910.0,0.23011142]
[1758529574782,1.18076355,112920.0,112910.0,0.23011142]
[1758529575588,1.00364701,112920.0,112910.0,0.23011142]
[1758529576427,1.00196701,112920.0,112910.0,0.25395142]
[1758529578257,0.48469904,112920.0,112910.0,0.74746939]
[1758529578634,0.439,112920.0,112910.0,0.74746939]
[1758529579014,0.439,112920.0,112910.0,0.25395142]
[1758529582098,0.56482864,112930.0,112920.0,0.17711654]
[1758529582099,0.07131067,112930.0,112920.0,0.17711654]
[1758529582319,0.07131067,112930.0,112920.0,0.24924334]
[1758529582523,0.09486067,112930.0,112920.0,0.24924334]
[1758529585188,0.09586067,112930.0,112920.0,0.24924334]
[1758529585416,0.07231067,112930.0,112920.0,0.24924334]
[1758529589459,0.09526067,112930.0,112920.0,0.24924334]
[1758529589951,0.58877864,112930.0,112920.0,0.24924334]
[1758529590163,0.60783351,112930.0,112920.0,0.24924334]
[1758529590370,0.75830038,112930.0,112920.0,0.24924334]
[1758529590779,0.58119953,112930.0,112920.0,0.24924334]
[1758529590990,0.08768156,112930.0,112920.0,0.22540334]
[1758529591185,0.56382466,112930.0,112920.0,0.22540334]
[1758529591360,0.58287953,112930.0,112920.0,0.22540334]
[1758529591574,0.58287953,112930.0,112920.0,0.22022334]
[1758529592448,0.58287953,112930.0,112920.0,0.22221334]
[1758529592646,0.58287953,112930.0,112920.0,0.22525334]
[1758529592870,0.58287953,112930.0,112920.0,0.22022334]
[1758529593075,0.76103038,112930.0,112910.0,0.17713222]
[1758529593278,0.51646797,112920.0,112910.0,0.17713222]
[1758529593496,0.69526451,112920.0,112910.0,0.17713222]
[1758529593716,0.51814797,112920.0,112910.0,0.17713222]
[1758529594061,0.51814797,112920.0,112910.0,0.17912222]
[1758529594478,0.69526451,112920.0,112910.0,0.17912222]
[1758529594676,0.94206268,112920.0,112910.0,0.17912222]
[1758529595230,0.96111485,112920.0,112910.0,0.17813222]
[1758529595448,0.96111485,112920.0,112910.0,0.04358232]
[1758529595707,0.96216485,112920.0,112910.0,0.18513222]
[1758529595906,0.98880165,112920.0,112910.0,0.001]
[1758529596046,0.98880165,112920.0,112910.0,0.17813222]
[1758529596047,0.98775165,112920.0,112910.0,0.17813222]
[1758529596254,0.98775165,112920.0,112910.0,0.18813222]
[1758529596877,1.42675165,112920.0,112910.0,0.18813222]
[1758529598212,1.42675165,112920.0,112910.0,0.20861339]
[1758529598616,1.42675165,112920.0,112910.0,0.18813222]
[1758529599819,0.68643551,112920.0,112910.0,0.18813222]
[1758529600037,1.42675165,112920.0,112910.0,0.18813222]
[1758529601653,1.42780165,112920.0,112910.0,0.011]
[1758529603465,0.68748551,112920.0,112910.0,0.011]
[1758529603696,1.42780165,112920.0,112910.0,0.011]
[1758529603871,0.68643551,112920.0,112910.0,0.20694688]
[1758529604074,1.42675165,112920.0,112910.0,0.20893688]
[1758529604498,1.05659358,112920.0,112910.0,0.01299]
[1758529604715,1.42675165,112920.0,112910.0,0.011]
[1758529605963,1.42675165,112920.0,112910.0,0.18813222]
[1758529606442,1.42675165,112920.0,112910.0,0.011]
[1758529607297,1.42675165,112920.0,112910.0,0.18813222]
[1758529607495,1.22500511,112920.0,112910.0,0.011]
[1758529607694,1.40212165,112920.0,112910.0,0.011]
[1758529608322,1.40212165,112920.0,112910.0,0.20972888]
[1758529608670,0.96312165,112920.0,112910.0,0.20972888]
[1758529608896,0.96312165,112920.0,112910.0,0.03259666]
[1758529609557,0.98607165,112920.0,112910.0,0.03259666]
[1758529610944,0.98607165,112920.0,112910.0,0.011]
[1758529612289,0.98607165,112920.0,112910.0,0.18813222]
[1758529613172,0.98607165,112920.0,112910.0,0.18756662]
[1758529614445,0.24575551,112920.0,112910.0,0.18955662]
[1758529614705,0.96701948,112920.0,112910.0,0.19259662]
[1758529614929,0.98607165,112920.0,112910.0,0.19259662]
[1758529615362,0.98607165,112920.0,112910.0,0.23204894]
[1758529615584,0.96312165,112920.0,112910.0,0.25682894]
[1758529616042,0.93648485,112920.0,112910.0,0.25682894]
[1758529616243,0.96312385,112920.0,112910.0,0.25682894]
[1758529616701,0.98607385,112920.0,112910.0,0.23204894]
[1758529617340,0.9860607,112920.0,112910.0,0.23204894]
[1758529620185,0.99226245,112920.0,112910.0,0.05491672]
[1758529620386,0.99226245,112920.0,112910.0,0.0104344]
[1758529620745,0.99226245,112920.0,112910.0,0.18756662]
[1758529621652,0.25194631,112920.0,112910.0,0.18756662]
[1758529621853,0.97322343,112920.0,112910.0,0.18756662]
[1758529622025,0.99226245,112920.0,112910.0,0.0104344]
[1758529622545,0.99226245,112920.0,112910.0,0.18756662]
[1758529622754,0.99226245,112920.0,112910.0,0.0104344]
[1758529623154,1.36242052,112920.0,112910.0,0.0104344]
[1758529623362,1.42562566,112920.0,112910.0,0.0104344]
[1758529623698,1.44217419,112920.0,112910.0,0.0104344]
[1758529624662,1.44217419,112920.0,112910.0,0.01]
[1758529625325,0.17714791,112900.0,112890.0,0.0004697]
[1758529625651,0.93194034,112900.0,112890.0,0.0004697]
[1758529625815,0.97363936,112900.0,112890.0,0.0004697]
[1758529626075,1.00028494,112900.0,112890.0,0.0004697]
[1758529626299,0.9920104,112900.0,112890.0,0.0004697]
[1758529628111,0.9920104,112900.0,112890.0,0.0074697]
[1758529629125,1.36216847,112900.0,112890.0,0.0074697]
[1758529630865,1.38692184,112900.0,112890.0,0.0074697]
[1758529631043,1.44185244,112900.0,112890.0,0.0074697]
[1758529631867,1.44185244,112900.0,112890.0,0.0004697]
[1758529632095,1.44185244,112900.0,112890.0,0.0034697]
[1758529632588,1.44385244,112900.0,112890.0,0.0034697]
[1758529632818,1.41713535,112900.0,112890.0,0.0034697]
[1758529636013,1.41713535,112900.0,112850.0,0.25679292]
[1758529636014,0.1772107,112860.0,112850.0,0.07441631]
[1758529636223,0.91752684,112860.0,112850.0,0.09840324]
[1758529636442,0.9427384,112860.0,112850.0,0.10041324]
[1758529636854,0.96939122,112860.0,112850.0,0.10041324]
[1758529637519,0.96939122,112860.0,112850.0,0.03314693]
[1758529637723,0.9427384,112860.0,112850.0,0.03314693]
[1758529637934,0.9437384,112860.0,112850.0,0.04914693]
[1758529638634,0.9437384,112860.0,112850.0,0.04713693]
[1758529638842,1.3825383,112860.0,112850.0,0.02004693]
[1758529639485,1.01238023,112860.0,112850.0,0.02004693]
[1758529639861,1.3585583,112860.0,112850.0,0.02004693]
[1758529640060,1.3907587,112860.0,112850.0,0.01604693]
[1758529640266,1.3907587,112860.0,112850.0,0.01704693]
[1758529640474,1.4164151,112860.0,112850.0,0.00104693]
[1758529640714,0.1772264,112850.0,112840.0,0.02570176]
[1758529640872,0.95928554,112850.0,112840.0,0.02570176]
[1758529641090,0.95928554,112850.0,112840.0,0.02771176]
[1758529641331,0.17725782,112830.0,112820.0,0.20121342]
[1758529641533,0.55358843,112830.0,112820.0,0.17727342]
[1758529641728,0.57262745,112830.0,112820.0,0.17928342]
[1758529642095,0.39536963,112830.0,112820.0,0.20322342]
[1758529642299,0.37633061,112830.0,112820.0,0.20322342]
[1758529642524,0.37633061,112830.0,112820.0,0.24750665]
[1758529642724,0.37633061,112830.0,112820.0,0.25065665]
[1758529643553,0.37633061,112830.0,112820.0,0.25265665]
[1758529643751,0.37733061,112830.0,112820.0,0.26565665]
[1758529644477,0.37733061,112830.0,112820.0,0.22137342]
[1758529644478,0.39636963,112830.0,112820.0,0.22137342]
[1758529644831,0.57362745,112830.0,112820.0,0.22137342]
[1758529645546,0.39636963,112830.0,112820.0,0.22137342]
[1758529645745,0.57362745,112830.0,112820.0,0.22137342]
[1758529645961,0.39636963,112830.0,112820.0,0.22137342]
[1758529646604,0.39636963,112830.0,112820.0,0.19227342]
[1758529646814,0.57362745,112830.0,112820.0,0.0441]
[1758529647019,0.57362745,112830.0,112820.0,0.01701]
[1758529647243,0.59789745,112830.0,112820.0,0.01701]
[1758529647455,0.57483745,112830.0,112820.0,0.0202]
[1758529647661,0.57362745,112830.0,112820.0,0.22228353]
[1758529648066,0.39636963,112830.0,112820.0,0.22228353]
[1758529648270,0.57362745,112830.0,112820.0,0.22228353]
[1758529649153,0.02621156,112830.0,112820.0,0.22228353]
[1758529649355,0.57362745,112830.0,112820.0,0.02027]
[1758529649564,0.590047,112830.0,112820.0,0.02027]
[1758529649778,0.614317,112830.0,112820.0,0.02027]
[1758529649992,0.591257,112830.0,112820.0,0.04508]
[1758529650199,0.590047,112830.0,112820.0,0.22235353]
[1758529650405,0.590047,112830.0,112820.0,0.015]
[1758529650406,0.99344361,112830.0,112820.0,0.015]
[1758529650859,1.05697018,112830.0,112820.0,0.015]
[1758529651114,0.17728924,112810.0,112800.0,0.18636915]
[1758529651356,0.95923649,112810.0,112800.0,0.18636915]
[1758529651568,0.98350649,112810.0,112800.0,0.0002]
[1758529651773,0.96120649,112810.0,112800.0,0.0002]
[1758529651984,0.98426649,112810.0,112800.0,0.0002]
[1758529652407,0.96949585,112810.0,112800.0,0.0002]
[1758529652610,0.99255569,112810.0,112800.0,0.0002]
[1758529653017,1.42624033,112810.0,112800.0,0.0002]
[1758529653201,1.42624033,112810.0,112790.0,0.0002]
[1758529653202,0.17730496,112800.0,112790.0,0.0002]
[1758529653346,1.89507163,112800.0,112790.0,0.0002]
[1758529653554,1.89189007,112800.0,112790.0,0.0002]
[1758529653970,1.89189007,112800.0,112780.0,0.0002]
[1758529653971,0.47732068,112790.0,112780.0,0.0002]
[1758529654170,1.82194647,112790.0,112780.0,0.0002]
[1758529654390,1.84697647,112790.0,112780.0,0.0002]
[1758529654630,1.75232299,112790.0,112780.0,0.0002]
[1758529654998,0.18621718,112780.0,112750.0,0.18479101]
[1758529655188,0.918894,112760.0,112740.0,0.24879185]
[1758529655361,0.37015807,112750.0,112740.0,0.27686521]
[1758529655561,0.39536963,112750.0,112740.0,0.27686521]
[1758529655808,0.39536963,112750.0,112740.0,0.27894521]
[1758529656013,0.02521156,112750.0,112740.0,0.22802059]
[1758529656228,0.02521156,112750.0,112740.0,0.25491059]
[1758529656446,0.39536963,112750.0,112740.0,0.18014603]
[1758529656650,0.52024391,112750.0,112740.0,0.20814603]
[1758529656899,0.6998375,112750.0,112740.0,0.19233645]
[1758529657102,0.6998375,112750.0,112740.0,0.00966713]
[1758529657489,0.7228975,112750.0,112740.0,0.00966713]
[1758529657931,0.6998375,112750.0,112740.0,0.18914645]
[1758529658133,0.52124391,112750.0,112740.0,0.21714645]
[1758529658338,0.6998375,112750.0,112740.0,0.00966713]
[1758529658513,0.22786515,112750.0,112740.0,0.18706645]
[1758529658722,0.6986275,112750.0,112740.0,0.19233645]
[1758529658925,0.6998375,112750.0,112740.0,0.00566713]
[1758529659122,0.6998375,112750.0,112740.0,0.00766713]
[1758529659331,0.6988375,112750.0,112740.0,0.18214645]
[1758529659776,0.7005975,112750.0,112740.0,0.01066713]
[1758529659970,0.76821073,112750.0,112740.0,0.01066713]
[1758529660331,0.79321524,112750.0,112740.0,0.01066713]
[1758529660535,0.76821073,112750.0,112740.0,0.01066713]
[1758529661526,0.73999917,112750.0,112740.0,0.01066713]
[1758529661949,0.73999917,112750.0,112740.0,0.00866713]
[1758529662185,0.52124391,112750.0,112740.0,0.21614645]
[1758529662327,0.52124391,112750.0,112740.0,0.21714645]
[1758529662536,0.50220489,112750.0,112740.0,0.21714645]
[1758529662758,0.50220489,112750.0,112740.0,0.21614645]
[1758529663069,0.00817254,112750.0,112740.0,0.20814645]
[1758529663359,0.50320489,112750.0,112740.0,0.21414645]
[1758529663535,0.00717254,112750.0,112740.0,0.21414645]
[1758529663976,0.00717254,112750.0,112740.0,0.21514645]
[1758529664100,0.001,112750.0,112740.0,0.30041612]
[1758529664307,0.00712476,112750.0,112740.0,0.30041612]
[1758529664512,0.00712476,112750.0,112740.0,0.21514645]
[1758529667065,0.50216133,112750.0,112740.0,0.21514645]
[1758529668096,0.00712898,112750.0,112740.0,0.21514645]
[1758529669238,0.026168,112750.0,112740.0,0.21514645]
[1758529669438,0.00712898,112750.0,112740.0,0.79544847]
[1758529669750,0.00712898,112750.0,112740.0,0.88071814]
[1758529669952,0.001,112750.0,112740.0,0.88071814]
[1758529670204,0.001,112750.0,112740.0,0.38568579]
[1758529670353,0.001,112750.0,112740.0,0.88071814]
[1758529670754,0.001,112750.0,112740.0,0.38568579]
[1758529670955,0.001,112750.0,112740.0,0.88071814]
[1758529671266,0.00713987,112750.0,112740.0,0.88071814]
[1758529673532,0.001,112750.0,112740.0,0.88071814]
[1758529674542,0.01903902,112770.0,112760.0,0.17736786]
[1758529674741,0.02518648,112770.0,112760.0,0.28037432]
[1758529674923,0.02518648,112770.0,112760.0,0.28245432]
[1758529675126,0.02518648,112770.0,112760.0,0.31045432]
[1758529675551,0.02518648,112770.0,112760.0,0.80548667]
[1758529675952,0.02518648,112770.0,112760.0,0.31345432]
[1758529676790,0.00714746,112770.0,112760.0,0.81248667]
[1758529676992,0.00714746,112770.0,112760.0,0.80448667]
[1758529676993,0.00614746,112770.0,112760.0,0.80448667]
[1758529677365,0.00714746,112770.0,112760.0,0.81648667]
[1758529678597,0.00714746,112770.0,112760.0,0.88809941]
[1758529679093,0.00614746,112770.0,112760.0,0.87109941]
[1758529679299,0.00714746,112770.0,112760.0,0.89509941]
[1758529679548,0.00814746,112770.0,112760.0,0.40006706]
[1758529679785,0.00814746,112770.0,112760.0,0.92176355]
[1758529681076,0.00814746,112770.0,112760.0,0.4267312]
[1758529681206,0.00814746,112770.0,112760.0,0.92176355]
[1758529681651,0.00816535,112770.0,112760.0,0.4267312]
[1758529681865,0.00816535,112770.0,112760.0,0.92176355]
[1758529685719,0.008162,112770.0,112760.0,0.92176355]
[1758529689730,0.07202631,112810.0,112800.0,0.17730496]
[1758529689874,0.12163701,112810.0,112800.0,0.2127661]
[1758529690079,0.61863936,112810.0,112800.0,0.2127661]
[1758529690588,0.54737305,112810.0,112800.0,0.2127661]